[Event "Titled Tuesday Blitz November 15 Early 2022"]
[White "Lucas, Arthur"]
[Black "Deac, Bogdan-Daniel"]
[WhiteFideId "26093073"]
[BlackFideId "1226380"]
[WhiteElo "2251"]
[BlackElo "2648"]
[Result "0-1"]
[Round "01"]
[TimeControl "180+1"]
[Date "2022.11.15"]
[WhiteClock "0:00:01"]
[BlackClock "0:00:18"]

1. e4 {[%clk 0:02:59]}  c6 {[%clk 0:02:56]} 2. Nc3 {[%clk 0:02:58]}  d5 {[%clk 0:02:56]} 3. Nf3 {[%clk 0:02:59]}  a6 {[%clk 0:02:56]} 4. h3 {[%clk 0:02:42]}  dxe4 {[%clk 0:02:45]} 5. Nxe4 {[%clk 0:02:43]}  Bf5 {[%clk 0:02:45]} 6. Ng3 {[%clk 0:02:42]}  Be6 {[%clk 0:02:38]} 7. d4 {[%clk 0:02:30]}  Bd5 {[%clk 0:02:31]} 8. Be2 {[%clk 0:02:25]}  g6 {[%clk 0:02:26]} 9. O-O {[%clk 0:02:24]}  Bg7 {[%clk 0:02:25]} 10. Be3 {[%clk 0:02:20]}  Nf6 {[%clk 0:02:22]} 11. Ne5 {[%clk 0:02:19]}  Nbd7 {[%clk 0:02:18]} 12. Qd2 {[%clk 0:02:08]}  O-O {[%clk 0:02:16]} 13. Bh6 {[%clk 0:02:07]}  Qc7 {[%clk 0:02:03]} 14. Bxg7 {[%clk 0:02:05]}  Kxg7 {[%clk 0:02:03]} 15. Qg5 {[%clk 0:01:58]}  Be6 {[%clk 0:01:54]} 16. Bd3 {[%clk 0:01:34]}  h6 {[%clk 0:01:46]} 17. Qe3 {[%clk 0:01:31]}  c5 {[%clk 0:01:35]} 18. Nxd7 {[%clk 0:01:17]}  cxd4 {[%clk 0:01:26]} 19. Qxd4 {[%clk 0:01:17]}  Qxd7 {[%clk 0:01:16]} 20. Qxd7 {[%clk 0:01:15]}  Nxd7 {[%clk 0:01:16]} 21. Be4 {[%clk 0:01:05]}  Nc5 {[%clk 0:01:06]} 22. Bf3 {[%clk 0:01:05]}  Rab8 {[%clk 0:00:59]} 23. Rfd1 {[%clk 0:00:55]}  Rfc8 {[%clk 0:00:56]} 24. Rd2 {[%clk 0:00:41]}  b5 {[%clk 0:00:53]} 25. a3 {[%clk 0:00:37]}  Na4 {[%clk 0:00:38]} 26. c3 {[%clk 0:00:37]}  Rd8 {[%clk 0:00:38]} 27. Rad1 {[%clk 0:00:34]}  Rxd2 {[%clk 0:00:37]} 28. Rxd2 {[%clk 0:00:35]}  Nb6 {[%clk 0:00:37]} 29. Be2 {[%clk 0:00:30]}  Nc4 {[%clk 0:00:36]} 30. Bxc4 {[%clk 0:00:30]}  bxc4 {[%clk 0:00:37]} 31. Ne4 {[%clk 0:00:24]}  Rb5 {[%clk 0:00:29]} 32. f3 {[%clk 0:00:20]}  f5 {[%clk 0:00:27]} 33. Nf2 {[%clk 0:00:21]}  Kf6 {[%clk 0:00:26]} 34. Nd1 {[%clk 0:00:20]}  Rd5 {[%clk 0:00:23]} 35. Rxd5 {[%clk 0:00:18]}  Bxd5 {[%clk 0:00:24]} 36. Kf2 {[%clk 0:00:18]}  f4 {[%clk 0:00:23]} 37. Ke2 {[%clk 0:00:17]}  g5 {[%clk 0:00:21]} 38. Nf2 {[%clk 0:00:17]}  h5 {[%clk 0:00:20]} 39. Kd2 {[%clk 0:00:16]}  e5 {[%clk 0:00:20]} 40. Ke2 {[%clk 0:00:16]}  Kf5 {[%clk 0:00:20]} 41. Kd2 {[%clk 0:00:11]}  e4 {[%clk 0:00:20]} 42. Ke2 {[%clk 0:00:01]}  e3 {[%clk 0:00:19]} 43. Nd1 {[%clk 0:00:01]}  h4 {[%clk 0:00:19]} 44. Ke1 {[%clk 0:00:01]}  Bc6 {[%clk 0:00:18]} 45. Ke2 {[%clk 0:00:02]}  Ba4 {[%clk 0:00:18]} 46. Ke1 {[%clk 0:00:02]}  Bxd1 {[%clk 0:00:17]} 47. Kxd1 {[%clk 0:00:02]}  Ke5 {[%clk 0:00:17]} 48. Ke2 {[%clk 0:00:02]}  Kd5 {[%clk 0:00:17]} 49. Kd1 {[%clk 0:00:02]}  Kc5 {[%clk 0:00:18]} 50. a4 {[%clk 0:00:01]}  Kb6 {[%clk 0:00:18]} 0-1


[Site "https://www.chess.com"]

[Event "Titled Tuesday Blitz November 15 Early 2022"]
[White "Makridis, Dimitrios"]
[Black "Karas, Marek"]
[WhiteFideId "25864475"]
[BlackFideId "14928558"]
[WhiteElo "2272"]
[BlackElo "2220"]
[Result "1-0"]
[Round "01"]
[TimeControl "180+1"]
[Date "2022.11.16"]
[WhiteClock "0:00:34"]
[BlackClock "0:00:42"]

1. Nf3 {[%clk 0:02:56]}  Nf6 {[%clk 0:02:59]} 2. g3 {[%clk 0:02:55]}  d5 {[%clk 0:02:59]} 3. Bg2 {[%clk 0:02:56]}  c6 {[%clk 0:02:59]} 4. O-O {[%clk 0:02:56]}  Bg4 {[%clk 0:02:59]} 5. Ne5 {[%clk 0:02:56]}  Bf5 {[%clk 0:02:59]} 6. d3 {[%clk 0:02:54]}  Nbd7 {[%clk 0:02:59]} 7. f4 {[%clk 0:02:48]}  e6 {[%clk 0:02:40]} 8. Nc3 {[%clk 0:02:38]}  Be7 {[%clk 0:02:35]} 9. e4 {[%clk 0:02:35]}  Bg6 {[%clk 0:02:30]} 10. Nxg6 {[%clk 0:02:27]}  hxg6 {[%clk 0:02:30]} 11. e5 {[%clk 0:02:27]}  Ng8 {[%clk 0:02:28]} 12. d4 {[%clk 0:02:23]}  Nh6 {[%clk 0:02:23]} 13. Ne2 {[%clk 0:02:20]}  g5 {[%clk 0:02:20]} 14. c3 {[%clk 0:02:14]}  gxf4 {[%clk 0:02:13]} 15. Nxf4 {[%clk 0:02:15]}  Nf5 {[%clk 0:02:09]} 16. Qg4 {[%clk 0:02:12]}  Nf8 {[%clk 0:02:06]} 17. Qf3 {[%clk 0:01:50]}  Bg5 {[%clk 0:02:01]} 18. Nh5 {[%clk 0:01:39]}  Bxc1 {[%clk 0:01:57]} 19. Nxg7+ {[%clk 0:01:38]}  Kd7 {[%clk 0:01:51]} 20. Nxf5 {[%clk 0:01:37]}  Bxb2 {[%clk 0:01:45]} 21. Rab1 {[%clk 0:01:37]}  exf5 {[%clk 0:01:41]} 22. Qxf5+ {[%clk 0:01:31]}  Ne6 {[%clk 0:01:41]} 23. Qxf7+ {[%clk 0:01:30]}  Qe7 {[%clk 0:01:41]} 24. Rxb2 {[%clk 0:01:31]}  b5 {[%clk 0:01:37]} 25. Rbf2 {[%clk 0:01:26]}  Raf8 {[%clk 0:01:30]} 26. Qg6 {[%clk 0:01:18]}  Rfg8 {[%clk 0:01:20]} 27. Qd3 {[%clk 0:01:05]}  Rf8 {[%clk 0:01:18]} 28. a4 {[%clk 0:01:04]}  Rxf2 {[%clk 0:01:14]} 29. Rxf2 {[%clk 0:01:05]}  a6 {[%clk 0:01:08]} 30. axb5 {[%clk 0:01:04]}  axb5 {[%clk 0:01:09]} 31. h4 {[%clk 0:01:02]}  Kc7 {[%clk 0:01:07]} 32. Qg6 {[%clk 0:00:53]}  Rf8 {[%clk 0:01:00]} 33. Rxf8 {[%clk 0:00:51]}  Nxf8 {[%clk 0:01:01]} 34. Qf6 {[%clk 0:00:48]}  Qa3 {[%clk 0:01:01]} 35. Kh2 {[%clk 0:00:47]}  Nd7 {[%clk 0:00:57]} 36. Qf7 {[%clk 0:00:46]}  Qf8 {[%clk 0:00:52]} 37. Qxf8 {[%clk 0:00:42]}  Nxf8 {[%clk 0:00:52]} 38. g4 {[%clk 0:00:42]}  Ne6 {[%clk 0:00:52]} 39. h5 {[%clk 0:00:38]}  Kd7 {[%clk 0:00:52]} 40. h6 {[%clk 0:00:35]}  Ng5 {[%clk 0:00:49]} 41. Kg3 {[%clk 0:00:35]}  Ke7 {[%clk 0:00:49]} 42. Kh4 {[%clk 0:00:34]}  Nf7 {[%clk 0:00:49]} 43. g5 {[%clk 0:00:34]}  Kf8 {[%clk 0:00:46]} 44. Kh5 {[%clk 0:00:34]}  Nd8 {[%clk 0:00:46]} 45. Bh3 {[%clk 0:00:34]}  c5 {[%clk 0:00:44]} 46. g6 {[%clk 0:00:34]}  cxd4 {[%clk 0:00:42]} 47. cxd4 {[%clk 0:00:34]}  b4 {[%clk 0:00:42]} 48. g7+ {[%clk 0:00:34]}  Kf7 {[%clk 0:00:42]} 49. e6+ {[%clk 0:00:34]} 1-0


[Site "https://www.chess.com"]

[Event "Titled Tuesday Blitz November 15 Early 2022"]
[White "Marcolino, Daniel Mattos"]
[Black "Chyzy, Jakub"]
[WhiteFideId "2106841"]
[BlackFideId "21806209"]
[WhiteElo "2116"]
[BlackElo "2203"]
[Result "1-0"]
[Round "01"]
[TimeControl "180+1"]
[Date "2022.11.16"]
[WhiteClock "0:00:55"]
[BlackClock "0:02:01"]

1. d4 {[%clk 0:02:24]}  Nf6 {[%clk 0:03:00]} 2. Nf3 {[%clk 0:02:24]}  d6 {[%clk 0:03:00]} 3. g3 {[%clk 0:02:23]}  Nbd7 {[%clk 0:03:00]} 4. Bg2 {[%clk 0:02:22]}  e5 {[%clk 0:03:01]} 5. dxe5 {[%clk 0:02:21]}  dxe5 {[%clk 0:03:01]} 6. O-O {[%clk 0:02:17]}  Be7 {[%clk 0:03:01]} 7. b3 {[%clk 0:02:08]}  O-O {[%clk 0:02:57]} 8. Bb2 {[%clk 0:02:08]}  e4 {[%clk 0:02:52]} 9. Ng5 {[%clk 0:01:57]}  Nc5 {[%clk 0:02:44]} 10. Nd2 {[%clk 0:01:50]}  Bf5 {[%clk 0:02:39]} 11. b4 {[%clk 0:01:19]}  Na4 {[%clk 0:02:34]} 12. Ba3 {[%clk 0:01:12]}  Nc3 {[%clk 0:02:22]} 13. Qe1 {[%clk 0:01:07]}  h6 {[%clk 0:02:18]} 14. Nh3 {[%clk 0:01:05]}  a5 {[%clk 0:02:04]} 15. Bb2 {[%clk 0:00:56]}  axb4 {[%clk 0:02:01]} 16. e3 {[%clk 0:00:55]} 1-0


[Site "https://www.chess.com"]

[Event "Titled Tuesday Blitz November 15 Early 2022"]
[White "Martin Duque, Jesus"]
[Black "Bongo Akanga Ndjila, Barthelemy"]
[WhiteFideId "2208954"]
[BlackFideId "10609431"]
[WhiteElo "2297"]
[BlackElo "1768"]
[Result "1-0"]
[Round "01"]
[TimeControl "180+1"]
[Date "2022.11.16"]
[WhiteClock "0:00:49"]
[BlackClock "0:00:42"]

1. Nf3 {[%clk 0:02:52]}  g6 {[%clk 0:02:57]} 2. d4 {[%clk 0:02:46]}  Bg7 {[%clk 0:02:50]} 3. e3 {[%clk 0:02:46]}  Nh6 {[%clk 0:02:48]} 4. h4 {[%clk 0:02:44]}  f5 {[%clk 0:02:47]} 5. h5 {[%clk 0:02:44]}  O-O {[%clk 0:02:46]} 6. hxg6 {[%clk 0:02:44]}  hxg6 {[%clk 0:02:45]} 7. Ne5 {[%clk 0:02:23]}  Qe8 {[%clk 0:02:41]} 8. e4 {[%clk 0:02:23]}  d6 {[%clk 0:02:41]} 9. Bxh6 {[%clk 0:02:21]}  dxe5 {[%clk 0:02:38]} 10. Bc4+ {[%clk 0:02:16]}  e6 {[%clk 0:02:38]} 11. dxe5 {[%clk 0:02:08]}  Nc6 {[%clk 0:02:34]} 12. Bb5 {[%clk 0:01:50]}  Bd7 {[%clk 0:02:32]} 13. Bxc6 {[%clk 0:01:50]}  Bxc6 {[%clk 0:02:32]} 14. Nc3 {[%clk 0:01:50]}  Rd8 {[%clk 0:02:30]} 15. Qc1 {[%clk 0:01:50]}  Qe7 {[%clk 0:02:26]} 16. Bxg7 {[%clk 0:01:50]}  Qxg7 {[%clk 0:02:25]} 17. Qh6 {[%clk 0:01:48]}  Qxh6 {[%clk 0:02:21]} 18. Rxh6 {[%clk 0:01:48]}  Kg7 {[%clk 0:02:22]} 19. Rh4 {[%clk 0:01:46]}  g5 {[%clk 0:02:18]} 20. Rh5 {[%clk 0:01:43]}  Kg6 {[%clk 0:02:18]} 21. g4 {[%clk 0:01:40]}  fxg4 {[%clk 0:02:16]} 22. Rh2 {[%clk 0:01:38]}  Rf4 {[%clk 0:02:13]} 23. Rd1 {[%clk 0:01:35]}  Rxd1+ {[%clk 0:02:12]} 24. Kxd1 {[%clk 0:01:36]}  Bxe4 {[%clk 0:02:11]} 25. Rh8 {[%clk 0:01:36]}  Bf3+ {[%clk 0:02:09]} 26. Kd2 {[%clk 0:01:35]}  Rd4+ {[%clk 0:02:09]} 27. Ke3 {[%clk 0:01:35]}  Rb4 {[%clk 0:02:07]} 28. b3 {[%clk 0:01:34]}  Rb6 {[%clk 0:02:06]} 29. Rc8 {[%clk 0:01:32]}  Rc6 {[%clk 0:02:05]} 30. Kd4 {[%clk 0:01:32]}  Kf5 {[%clk 0:02:00]} 31. b4 {[%clk 0:01:30]}  a6 {[%clk 0:01:57]} 32. a4 {[%clk 0:01:30]}  b5 {[%clk 0:01:56]} 33. Rf8+ {[%clk 0:01:15]}  Kg6 {[%clk 0:01:53]} 34. Rf6+ {[%clk 0:01:15]}  Kh5 {[%clk 0:01:49]} 35. a5 {[%clk 0:01:12]}  Rc4+ {[%clk 0:01:48]} 36. Kd3 {[%clk 0:01:11]}  Rxb4 {[%clk 0:01:48]} 37. Rxe6 {[%clk 0:01:10]}  c5 {[%clk 0:01:35]} 38. Rf6 {[%clk 0:01:07]}  Rd4+ {[%clk 0:01:35]} 39. Ke3 {[%clk 0:01:07]}  b4 {[%clk 0:01:32]} 40. Na4 {[%clk 0:01:05]}  Rc4 {[%clk 0:01:30]} 41. Kd3 {[%clk 0:00:59]}  Rd4+ {[%clk 0:01:27]} 42. Ke3 {[%clk 0:00:59]}  Rc4 {[%clk 0:01:27]} 43. Kd2 {[%clk 0:00:53]}  Be4 {[%clk 0:01:23]} 44. c3 {[%clk 0:00:53]}  bxc3+ {[%clk 0:01:22]} 45. Nxc3 {[%clk 0:00:54]}  Bf3 {[%clk 0:01:18]} 46. e6 {[%clk 0:00:53]}  Rb4 {[%clk 0:01:15]} 47. e7 {[%clk 0:00:51]}  Rb2+ {[%clk 0:00:58]} 48. Kc1 {[%clk 0:00:50]}  Rb3 {[%clk 0:00:46]} 49. Kc2 {[%clk 0:00:49]}  Rb8 {[%clk 0:00:42]} 50. Rf8 {[%clk 0:00:49]} 1-0


[Site "https://www.chess.com"]

[Event "Titled Tuesday Blitz November 15 Early 2022"]
[White "Melian, Juan Sebastian"]
[Black "Alhadad, Mahmoud"]
[WhiteFideId "3706575"]
[BlackFideId "11501863"]
[WhiteElo "2044"]
[BlackElo "1955"]
[Result "1-0"]
[Round "01"]
[TimeControl "180+1"]
[Date "2022.11.16"]
[WhiteClock "0:00:43"]
[BlackClock "0:00:08"]

1. d4 {[%clk 0:02:56]}  d5 {[%clk 0:02:58]} 2. c4 {[%clk 0:02:55]}  Nc6 {[%clk 0:02:56]} 3. Nf3 {[%clk 0:02:55]}  Bg4 {[%clk 0:02:55]} 4. e3 {[%clk 0:02:54]}  e5 {[%clk 0:02:54]} 5. Be2 {[%clk 0:02:42]}  e4 {[%clk 0:02:53]} 6. Nfd2 {[%clk 0:02:39]}  Bxe2 {[%clk 0:02:53]} 7. Qxe2 {[%clk 0:02:40]}  Nf6 {[%clk 0:02:50]} 8. a3 {[%clk 0:02:36]}  Be7 {[%clk 0:02:41]} 9. Nc3 {[%clk 0:02:36]}  O-O {[%clk 0:02:36]} 10. cxd5 {[%clk 0:02:36]}  Nxd5 {[%clk 0:02:36]} 11. Ndxe4 {[%clk 0:02:34]}  f5 {[%clk 0:02:32]} 12. Qc4 {[%clk 0:02:25]}  fxe4 {[%clk 0:02:15]} 13. Qxd5+ {[%clk 0:02:24]}  Qxd5 {[%clk 0:02:14]} 14. Nxd5 {[%clk 0:02:25]}  Bd6 {[%clk 0:02:10]} 15. Nc3 {[%clk 0:02:22]}  Rae8 {[%clk 0:02:08]} 16. O-O {[%clk 0:02:16]}  Na5 {[%clk 0:02:08]} 17. b4 {[%clk 0:02:11]}  Nc4 {[%clk 0:02:02]} 18. Ra2 {[%clk 0:01:59]}  c6 {[%clk 0:01:59]} 19. Re2 {[%clk 0:01:57]}  a5 {[%clk 0:01:41]} 20. b5 {[%clk 0:01:41]}  Bxa3 {[%clk 0:01:35]} 21. Bxa3 {[%clk 0:01:40]}  Nxa3 {[%clk 0:01:35]} 22. bxc6 {[%clk 0:01:38]}  bxc6 {[%clk 0:01:35]} 23. Ra1 {[%clk 0:01:33]}  Nb5 {[%clk 0:01:11]} 24. Rc2 {[%clk 0:01:31]}  Nxc3 {[%clk 0:01:06]} 25. Rxc3 {[%clk 0:01:31]}  Rb8 {[%clk 0:01:03]} 26. Rac1 {[%clk 0:01:20]}  Rf6 {[%clk 0:00:57]} 27. h3 {[%clk 0:01:11]}  Rb6 {[%clk 0:00:56]} 28. R1c2 {[%clk 0:01:08]}  Ra6 {[%clk 0:00:44]} 29. Ra2 {[%clk 0:01:06]}  g6 {[%clk 0:00:39]} 30. g4 {[%clk 0:00:52]}  Rd6 {[%clk 0:00:34]} 31. Ra4 {[%clk 0:00:44]}  Kf7 {[%clk 0:00:33]} 32. Kg2 {[%clk 0:00:44]}  Rd5 {[%clk 0:00:25]} 33. Rac4 {[%clk 0:00:42]}  Rd6 {[%clk 0:00:15]} 34. Kg3 {[%clk 0:00:40]}  Ke6 {[%clk 0:00:15]} 35. Kf4 {[%clk 0:00:40]}  Kd7 {[%clk 0:00:11]} 36. Kxe4 {[%clk 0:00:40]}  g5 {[%clk 0:00:10]} 37. f4 {[%clk 0:00:40]}  gxf4 {[%clk 0:00:10]} 38. exf4 {[%clk 0:00:41]}  a4 {[%clk 0:00:08]} 39. Ra3 {[%clk 0:00:40]}  Re6+ {[%clk 0:00:08]} 40. Kf3 {[%clk 0:00:40]}  h5 {[%clk 0:00:07]} 41. Rcxa4 {[%clk 0:00:40]}  Rxa4 {[%clk 0:00:07]} 42. Rxa4 {[%clk 0:00:40]}  hxg4+ {[%clk 0:00:08]} 43. hxg4 {[%clk 0:00:41]}  Kd6 {[%clk 0:00:08]} 44. f5 {[%clk 0:00:39]}  Re1 {[%clk 0:00:08]} 45. Kf4 {[%clk 0:00:39]}  Kd5 {[%clk 0:00:07]} 46. Kg5 {[%clk 0:00:39]}  Rc1 {[%clk 0:00:04]} 47. Kf6 {[%clk 0:00:38]}  Rc4 {[%clk 0:00:04]} 48. Rxc4 {[%clk 0:00:37]}  Kxc4 {[%clk 0:00:05]} 49. g5 {[%clk 0:00:38]}  Kxd4 {[%clk 0:00:05]} 50. g6 {[%clk 0:00:39]}  c5 {[%clk 0:00:06]} 51. g7 {[%clk 0:00:40]}  c4 {[%clk 0:00:07]} 52. g8=Q {[%clk 0:00:41]}  c3 {[%clk 0:00:08]} 53. Qg5 {[%clk 0:00:41]}  Kd3 {[%clk 0:00:08]} 54. Qc1 {[%clk 0:00:42]}  c2 {[%clk 0:00:08]} 55. Ke6 {[%clk 0:00:43]}  Ke4 {[%clk 0:00:07]} 56. Qxc2+ {[%clk 0:00:43]}  Kd4 {[%clk 0:00:08]} 1-0


[Site "https://www.chess.com"]

[Event "Titled Tuesday Blitz November 15 Early 2022"]
[White "Melikhov, Evgeny V."]
[Black "Donchenko, Alexander"]
[WhiteFideId "4122046"]
[BlackFideId "24603295"]
[WhiteElo "2169"]
[BlackElo "2572"]
[Result "0-1"]
[Round "01"]
[TimeControl "180+1"]
[Date "2022.11.16"]
[WhiteClock "0:00:01"]
[BlackClock "0:01:26"]

1. d4 {[%clk 0:03:00]}  Nf6 {[%clk 0:02:59]} 2. c4 {[%clk 0:03:00]}  e6 {[%clk 0:02:59]} 3. Nc3 {[%clk 0:02:59]}  Bb4 {[%clk 0:02:59]} 4. Qc2 {[%clk 0:02:59]}  d5 {[%clk 0:02:59]} 5. cxd5 {[%clk 0:02:59]}  exd5 {[%clk 0:03:00]} 6. Bg5 {[%clk 0:02:58]}  h6 {[%clk 0:03:00]} 7. Bxf6 {[%clk 0:02:58]}  Qxf6 {[%clk 0:03:00]} 8. a3 {[%clk 0:02:59]}  Bxc3+ {[%clk 0:02:59]} 9. Qxc3 {[%clk 0:02:59]}  O-O {[%clk 0:02:58]} 10. e3 {[%clk 0:02:59]}  c6 {[%clk 0:02:51]} 11. Nf3 {[%clk 0:02:59]}  Bg4 {[%clk 0:02:48]} 12. Be2 {[%clk 0:02:59]}  Nd7 {[%clk 0:02:48]} 13. O-O {[%clk 0:02:56]}  Rfe8 {[%clk 0:02:48]} 14. Rfc1 {[%clk 0:02:54]}  Nb6 {[%clk 0:02:42]} 15. Qc2 {[%clk 0:02:36]}  Nc8 {[%clk 0:02:33]} 16. Ne5 {[%clk 0:02:29]}  Bxe2 {[%clk 0:02:33]} 17. Qxe2 {[%clk 0:02:29]}  Nd6 {[%clk 0:02:33]} 18. b4 {[%clk 0:02:22]}  a5 {[%clk 0:02:31]} 19. Rab1 {[%clk 0:02:20]}  axb4 {[%clk 0:02:30]} 20. axb4 {[%clk 0:02:20]}  Ra7 {[%clk 0:02:20]} 21. Qc2 {[%clk 0:01:59]}  Rea8 {[%clk 0:02:17]} 22. Nd7 {[%clk 0:01:52]}  Qe7 {[%clk 0:02:13]} 23. Nb6 {[%clk 0:01:47]}  Ra2 {[%clk 0:02:08]} 24. Qc5 {[%clk 0:01:43]}  R8a6 {[%clk 0:02:02]} 25. b5 {[%clk 0:01:26]}  R6a5 {[%clk 0:01:49]} 26. Qc3 {[%clk 0:00:23]}  Rxb5 {[%clk 0:01:40]} 27. Rxb5 {[%clk 0:00:13]}  Nxb5 {[%clk 0:01:41]} 28. Qb3 {[%clk 0:00:11]}  Ra3 {[%clk 0:01:32]} 29. Nxd5 {[%clk 0:00:09]}  Qd6 {[%clk 0:01:28]} 30. Qb4 {[%clk 0:00:01]}  Qxd5 {[%clk 0:01:26]} 0-1


[Site "https://www.chess.com"]

[Event "Titled Tuesday Blitz November 15 Early 2022"]
[White "Mohammed, Zozek Salah Mohammed"]
[Black "Aggelis, Nikolaos"]
[WhiteFideId "4803361"]
[BlackFideId "4213220"]
[WhiteElo "2199"]
[BlackElo "2189"]
[Result "1/2-1/2"]
[Round "01"]
[TimeControl "180+1"]
[Date "2022.11.16"]
[WhiteClock "0:00:32"]
[BlackClock "0:00:25"]

1. d4 {[%clk 0:02:59]}  Nf6 {[%clk 0:02:57]} 2. Nf3 {[%clk 0:02:58]}  g6 {[%clk 0:02:58]} 3. c4 {[%clk 0:02:58]}  Bg7 {[%clk 0:02:58]} 4. g3 {[%clk 0:02:59]}  O-O {[%clk 0:02:58]} 5. Bg2 {[%clk 0:02:59]}  d5 {[%clk 0:02:58]} 6. O-O {[%clk 0:02:57]}  Nc6 {[%clk 0:02:58]} 7. Nbd2 {[%clk 0:02:48]}  a5 {[%clk 0:02:43]} 8. b3 {[%clk 0:02:42]}  a4 {[%clk 0:02:40]} 9. Bb2 {[%clk 0:02:42]}  a3 {[%clk 0:02:40]} 10. Bc3 {[%clk 0:02:41]}  Ne4 {[%clk 0:02:40]} 11. Nxe4 {[%clk 0:02:37]}  dxe4 {[%clk 0:02:41]} 12. Ne5 {[%clk 0:02:36]}  Nxe5 {[%clk 0:02:25]} 13. dxe5 {[%clk 0:02:35]}  Bf5 {[%clk 0:02:26]} 14. e3 {[%clk 0:02:27]}  c6 {[%clk 0:02:26]} 15. Qxd8 {[%clk 0:02:09]}  Rfxd8 {[%clk 0:02:25]} 16. Rfd1 {[%clk 0:02:09]}  Rd3 {[%clk 0:02:20]} 17. Rxd3 {[%clk 0:01:56]}  exd3 {[%clk 0:02:21]} 18. Rd1 {[%clk 0:01:46]}  Rd8 {[%clk 0:02:18]} 19. e4 {[%clk 0:01:45]}  Bg4 {[%clk 0:02:15]} 20. f3 {[%clk 0:01:43]}  Be6 {[%clk 0:02:15]} 21. Kf2 {[%clk 0:01:42]}  Bh6 {[%clk 0:02:05]} 22. Bf1 {[%clk 0:01:36]}  d2 {[%clk 0:01:57]} 23. f4 {[%clk 0:01:34]}  Bg4 {[%clk 0:01:53]} 24. Rxd2 {[%clk 0:01:34]}  Rxd2+ {[%clk 0:01:47]} 25. Bxd2 {[%clk 0:01:33]}  f6 {[%clk 0:01:46]} 26. exf6 {[%clk 0:01:30]}  exf6 {[%clk 0:01:47]} 27. Bb4 {[%clk 0:01:28]}  Bf8 {[%clk 0:01:47]} 28. Bxf8 {[%clk 0:01:27]}  Kxf8 {[%clk 0:01:48]} 29. Be2 {[%clk 0:01:26]}  Be6 {[%clk 0:01:46]} 30. Ke3 {[%clk 0:01:24]}  c5 {[%clk 0:01:43]} 31. Kd3 {[%clk 0:01:20]}  b5 {[%clk 0:01:39]} 32. Kc3 {[%clk 0:01:10]}  b4+ {[%clk 0:01:38]} 33. Kd2 {[%clk 0:01:08]}  Ke7 {[%clk 0:01:37]} 34. Ke3 {[%clk 0:01:08]}  Kd6 {[%clk 0:01:37]} 35. Bd3 {[%clk 0:01:07]}  Bg4 {[%clk 0:01:36]} 36. Be2 {[%clk 0:01:06]}  Bh3 {[%clk 0:01:35]} 37. Kf3 {[%clk 0:01:04]}  Be6 {[%clk 0:01:32]} 38. g4 {[%clk 0:01:02]}  Bd7 {[%clk 0:01:31]} 39. h4 {[%clk 0:01:00]}  Bc6 {[%clk 0:01:24]} 40. g5 {[%clk 0:00:56]}  Ke6 {[%clk 0:00:36]} 41. Ke3 {[%clk 0:00:52]}  Ke7 {[%clk 0:00:32]} 42. gxf6+ {[%clk 0:00:44]}  Kxf6 {[%clk 0:00:33]} 43. e5+ {[%clk 0:00:44]}  Ke7 {[%clk 0:00:32]} 44. Bf3 {[%clk 0:00:43]}  Bd7 {[%clk 0:00:32]} 45. Be4 {[%clk 0:00:39]}  Bf5 {[%clk 0:00:24]} 46. Bxf5 {[%clk 0:00:35]}  gxf5 {[%clk 0:00:24]} 47. h5 {[%clk 0:00:31]}  h6 {[%clk 0:00:23]} 48. Kf3 {[%clk 0:00:31]}  Ke6 {[%clk 0:00:24]} 49. Kg3 {[%clk 0:00:30]}  Ke7 {[%clk 0:00:24]} 50. Kf2 {[%clk 0:00:31]}  Ke6 {[%clk 0:00:24]} 51. Ke3 {[%clk 0:00:32]}  Ke7 {[%clk 0:00:24]} 52. Kf3 {[%clk 0:00:33]}  Ke6 {[%clk 0:00:25]} 53. Ke3 {[%clk 0:00:32]}  Ke7 {[%clk 0:00:25]} 1/2-1/2


[Site "https://www.chess.com"]

[Event "Titled Tuesday Blitz November 15 Early 2022"]
[White "Mouhamad, Joachim"]
[Black "Boruchovsky, Avital"]
[WhiteFideId "656410"]
[BlackFideId "2800055"]
[WhiteElo "2164"]
[BlackElo "2458"]
[Result "1-0"]
[Round "01"]
[TimeControl "180+1"]
[Date "2022.11.16"]
[WhiteClock "0:01:55"]
[BlackClock "0:01:48"]

1. e4 {[%clk 0:02:58]}  e6 {[%clk 0:02:58]} 2. d4 {[%clk 0:02:54]}  d5 {[%clk 0:02:58]} 3. e5 {[%clk 0:02:53]}  c5 {[%clk 0:02:57]} 4. c3 {[%clk 0:02:53]}  Nc6 {[%clk 0:02:57]} 5. Nf3 {[%clk 0:02:53]}  Qb6 {[%clk 0:02:57]} 6. a3 {[%clk 0:02:52]}  Nh6 {[%clk 0:02:52]} 7. b4 {[%clk 0:02:51]}  cxd4 {[%clk 0:02:51]} 8. cxd4 {[%clk 0:02:52]}  Nf5 {[%clk 0:02:51]} 9. Bb2 {[%clk 0:02:53]}  Be7 {[%clk 0:02:47]} 10. Be2 {[%clk 0:02:53]}  Bd7 {[%clk 0:02:37]} 11. O-O {[%clk 0:02:53]}  h5 {[%clk 0:02:36]} 12. Qd2 {[%clk 0:02:53]}  h4 {[%clk 0:02:36]} 13. h3 {[%clk 0:02:51]}  f6 {[%clk 0:02:32]} 14. exf6 {[%clk 0:02:32]}  gxf6 {[%clk 0:02:33]} 15. Rd1 {[%clk 0:02:28]}  a5 {[%clk 0:02:29]} 16. b5 {[%clk 0:02:26]}  Na7 {[%clk 0:02:29]} 17. a4 {[%clk 0:02:23]}  Nc8 {[%clk 0:02:29]} 18. Ba3 {[%clk 0:02:18]}  Ncd6 {[%clk 0:02:28]} 19. Nc3 {[%clk 0:02:15]}  O-O-O {[%clk 0:02:20]} 20. Bc5 {[%clk 0:02:13]}  Qc7 {[%clk 0:02:11]} 21. b6 {[%clk 0:02:03]}  Qc6 {[%clk 0:02:11]} 22. Nb5 {[%clk 0:01:58]}  Ne4 {[%clk 0:01:48]} 23. Qxa5 {[%clk 0:01:55]} 1-0


[Site "https://www.chess.com"]